[Event "*** MasterClass Titled Tuesday Blitz"]
[Site "Chess.com"]
[Date "2017.12.05"]
[Round "2"]
[White "nubair1198"]
[Black "Kaphrep"]
[Result "1/2-1/2"]
[WhiteElo "2502"]
[BlackElo "2597"]
[TimeControl "180+2"]
[EndTime "14:40:41 PST"]
[Termination "Game drawn by stalemate"]

1. Nf3 {[%clk 0:03:01.9]} 1... d5 {[%clk 0:03:00.4]} 2. d4 {[%clk 0:03:00.5]}
2... Nf6 {[%clk 0:03:01]} 3. c4 {[%clk 0:03:01.8]} 3... e6 {[%clk 0:03:02.1]} 4.
Nc3 {[%clk 0:03:02.8]} 4... Nbd7 {[%clk 0:03:03.6]} 5. cxd5 {[%clk 0:03:00.6]}
5... exd5 {[%clk 0:03:04.4]} 6. Bg5 {[%clk 0:03:01.4]} 6... h6 {[%clk
0:03:05.6]} 7. Bh4 {[%clk 0:03:02.1]} 7... c6 {[%clk 0:03:06.5]} 8. e3 {[%clk
0:03:01.7]} 8... g5 {[%clk 0:03:06.5]} 9. Bg3 {[%clk 0:03:01.9]} 9... Nh5 {[%clk
0:03:08]} 10. Bd3 {[%clk 0:03:00.1]} 10... Nxg3 {[%clk 0:03:08.2]} 11. hxg3
{[%clk 0:03:02]} 11... Bg7 {[%clk 0:03:09.4]} 12. Rb1 {[%clk 0:02:51.9]} 12...
Nb6 {[%clk 0:02:54.8]} 13. Ne5 {[%clk 0:02:47.7]} 13... Qe7 {[%clk 0:02:40.2]}
14. f4 {[%clk 0:01:56.9]} 14... Be6 {[%clk 0:02:19.8]} 15. Na4 {[%clk 0:01:40]}
15... Qb4+ {[%clk 0:02:04.5]} 16. Nc3 {[%clk 0:01:40.4]} 16... O-O-O {[%clk
0:01:46.4]} 17. a3 {[%clk 0:01:31.6]} 17... Qe7 {[%clk 0:01:47]} 18. Na4 {[%clk
0:01:30.6]} 18... Nc4 {[%clk 0:01:29.9]} 19. Bxc4 {[%clk 0:01:16.1]} 19... dxc4
{[%clk 0:01:29]} 20. Nc5 {[%clk 0:01:17.6]} 20... Bf5 {[%clk 0:01:19.8]} 21. e4
{[%clk 0:01:13.9]} 21... f6 {[%clk 0:01:08.5]} 22. Qa4 {[%clk 0:00:38.5]} 22...
fxe5 {[%clk 0:00:29.5]} 23. Qxa7 {[%clk 0:00:39.6]} 23... Qc7 {[%clk 0:00:30.1]}
24. Qa8+ {[%clk 0:00:33.1]} 24... Qb8 {[%clk 0:00:30.6]} 25. Qxb8+ {[%clk
0:00:34.7]} 25... Kxb8 {[%clk 0:00:32.5]} 26. exf5 {[%clk 0:00:36.5]} 26... exf4
{[%clk 0:00:21.4]} 27. Ne6 {[%clk 0:00:38.4]} 27... Rde8 {[%clk 0:00:22.8]} 28.
gxf4 {[%clk 0:00:38.5]} 28... gxf4 {[%clk 0:00:21.9]} 29. O-O {[%clk 0:00:39.7]}
29... Bf6 {[%clk 0:00:22.4]} 30. Rxf4 {[%clk 0:00:41.1]} 30... Rhg8 {[%clk
0:00:23.1]} 31. Kf2 {[%clk 0:00:41.8]} 31... h5 {[%clk 0:00:23.5]} 32. Rc1
{[%clk 0:00:41.8]} 32... b5 {[%clk 0:00:20.1]} 33. b3 {[%clk 0:00:42.4]} 33...
cxb3 {[%clk 0:00:12]} 34. Rxc6 {[%clk 0:00:42.3]} 34... Rc8 {[%clk 0:00:10.8]}
35. Rb6+ {[%clk 0:00:43.3]} 35... Ka7 {[%clk 0:00:12.3]} 36. Rxb5 {[%clk
0:00:44.5]} 36... Rc2+ {[%clk 0:00:12.4]} 37. Kf1 {[%clk 0:00:17]} 37... b2
{[%clk 0:00:13]} 38. d5 {[%clk 0:00:18.3]} 38... Ka6 {[%clk 0:00:14.6]} 39. Rfb4
{[%clk 0:00:18.9]} 39... Rc1+ {[%clk 0:00:05]} 40. Kf2 {[%clk 0:00:19.8]} 40...
Rc2+ {[%clk 0:00:06.6]} 41. Kf1 {[%clk 0:00:21.3]} 41... Rc1+ {[%clk 0:00:07.9]}
42. Kf2 {[%clk 0:00:22.9]} 42... Bh4+ {[%clk 0:00:08.7]} 43. Kf3 {[%clk
0:00:23.1]} 43... Rc3+ {[%clk 0:00:09.2]} 44. Ke4 {[%clk 0:00:20.7]} 44... Rg4+
{[%clk 0:00:09.5]} 45. Ke5 {[%clk 0:00:21.9]} 45... Rxb4 {[%clk 0:00:09.4]} 46.
Rxb4 {[%clk 0:00:23.8]} 46... Rc2 {[%clk 0:00:06.6]} 47. f6 {[%clk 0:00:25]}
47... Bg3+ {[%clk 0:00:07.7]} 48. Kf5 {[%clk 0:00:26.2]} 48... Rf2+ {[%clk
0:00:08.6]} 49. Kg6 {[%clk 0:00:27.7]} 49... Be5 {[%clk 0:00:09.9]} 50. f7
{[%clk 0:00:28.7]} 50... Rf6+ {[%clk 0:00:11.5]} 51. Kg5 {[%clk 0:00:26.5]}
51... Rxf7 {[%clk 0:00:12.9]} 52. d6 {[%clk 0:00:22.9]} 52... Bxd6 {[%clk
0:00:11.9]} 53. Rxb2 {[%clk 0:00:24]} 53... Rf1 {[%clk 0:00:09.6]} 54. Kxh5
{[%clk 0:00:22.8]} 54... Ka5 {[%clk 0:00:11.1]} 55. Rd2 {[%clk 0:00:19.2]} 55...
Rh1+ {[%clk 0:00:12.4]} 56. Kg6 {[%clk 0:00:19.6]} 56... Bxa3 {[%clk 0:00:13.8]}
57. g4 {[%clk 0:00:20.5]} 57... Kb5 {[%clk 0:00:14.4]} 58. Rc2 {[%clk
0:00:20.9]} 58... Re1 {[%clk 0:00:13.8]} 59. Nd4+ {[%clk 0:00:21.3]} 59... Kb6
{[%clk 0:00:15.3]} 60. g5 {[%clk 0:00:22.6]} 60... Bc5 {[%clk 0:00:15.2]} 61.
Nf5 {[%clk 0:00:23.9]} 61... Rf1 {[%clk 0:00:10.1]} 62. Ng3 {[%clk 0:00:25.1]}
62... Rf3 {[%clk 0:00:10.6]} 63. Ne4 {[%clk 0:00:25.9]} 63... Bd4 {[%clk
0:00:11.8]} 64. Kh6 {[%clk 0:00:25.5]} 64... Rh3+ {[%clk 0:00:12.9]} 65. Kg6
{[%clk 0:00:27]} 65... Be3 {[%clk 0:00:12.6]} 66. Kf5 {[%clk 0:00:27.2]} 66...
Bxg5 {[%clk 0:00:13.1]} 67. Nxg5 {[%clk 0:00:29.1]} 67... Rd3 {[%clk 0:00:14.5]}
68. Ne6 {[%clk 0:00:30.3]} 68... Rd5+ {[%clk 0:00:15.4]} 69. Ke4 {[%clk
0:00:31.1]} 69... Rd1 {[%clk 0:00:16.4]} 70. Ke5 {[%clk 0:00:32]} 70... Rd3
{[%clk 0:00:16]} 71. Nd4 {[%clk 0:00:32.3]} 71... Re3+ {[%clk 0:00:15.9]} 72.
Kd6 {[%clk 0:00:33.5]} 72... Rh3 {[%clk 0:00:17.8]} 73. Rb2+ {[%clk 0:00:34.3]}
73... Ka5 {[%clk 0:00:18.7]} 74. Kd5 {[%clk 0:00:30.8]} 74... Rh5+ {[%clk
0:00:19.8]} 75. Kc4 {[%clk 0:00:32.1]} 75... Ka6 {[%clk 0:00:21.3]} 76. Rb1
{[%clk 0:00:33.1]} 76... Rg5 {[%clk 0:00:21.7]} 77. Ne6 {[%clk 0:00:34.3]} 77...
Re5 {[%clk 0:00:14.8]} 78. Nc5+ {[%clk 0:00:22.3]} 78... Ka7 {[%clk 0:00:15.7]}
79. Kb5 {[%clk 0:00:22.8]} 79... Rh5 {[%clk 0:00:12.6]} 80. Re1 {[%clk
0:00:18.9]} 80... Rh7 {[%clk 0:00:12]} 81. Re8 {[%clk 0:00:19.7]} 81... Rg7
{[%clk 0:00:10.4]} 82. Rh8 {[%clk 0:00:19.9]} 82... Rf7 {[%clk 0:00:11.1]} 83.
Ne4 {[%clk 0:00:19.7]} 83... Rf5+ {[%clk 0:00:11]} 84. Kc6 {[%clk 0:00:21.1]}
84... Rf1 {[%clk 0:00:08.3]} 85. Rh7+ {[%clk 0:00:21.2]} 85... Kb8 {[%clk
0:00:09.5]} 86. Nc5 {[%clk 0:00:22]} 86... Rf6+ {[%clk 0:00:09.8]} 87. Kb5
{[%clk 0:00:22.4]} 87... Rf5 {[%clk 0:00:11.1]} 88. Rg7 {[%clk 0:00:19.7]} 88...
Rh5 {[%clk 0:00:11.9]} 89. Kb6 {[%clk 0:00:19.9]} 89... Rh6+ {[%clk 0:00:11.3]}
90. Kb5 {[%clk 0:00:21.4]} 90... Kc8 {[%clk 0:00:10.8]} 91. Kc4 {[%clk
0:00:21.8]} 91... Kd8 {[%clk 0:00:11.6]} 92. Kd5 {[%clk 0:00:23.2]} 92... Rh5+
{[%clk 0:00:12.3]} 93. Kd6 {[%clk 0:00:24.3]} 93... Ke8 {[%clk 0:00:12.4]} 94.
Ne6 {[%clk 0:00:24.3]} 94... Rd5+ {[%clk 0:00:13.9]} 95. Kc6 {[%clk 0:00:22.9]}
95... Rd6+ {[%clk 0:00:15]} 96. Kxd6 {[%clk 0:00:24.1]} 1/2-1/2

[Event "*** MasterClass Titled Tuesday Blitz"]
[Site "Chess.com"]
[Date "2017.12.05"]
[Round "3"]
[White "R2D3"]
[Black "juniortay"]
[Result "0-1"]
[WhiteElo "1700"]
[BlackElo "2308"]
[TimeControl "180+2"]
[EndTime "14:43:27 PST"]
[Termination "juniortay won by resignation"]

1. g4 {[%clk 0:03:01.1]} 1... d5 {[%clk 0:02:59.3]} 2. Bg2 {[%clk 0:03:00.4]}
2... Bxg4 {[%clk 0:03:00.1]} 3. h3 {[%clk 0:03:00.8]} 3... Bf5 {[%clk
0:03:00.2]} 4. d3 {[%clk 0:02:55.2]} 4... Nf6 {[%clk 0:03:00]} 5. Nc3 {[%clk
0:02:48.5]} 5... c6 {[%clk 0:02:59.8]} 6. Bf4 {[%clk 0:02:45.7]} 6... Nbd7
{[%clk 0:02:59.3]} 7. Qd2 {[%clk 0:02:37.4]} 7... e5 {[%clk 0:02:59.4]} 8. Bg5
{[%clk 0:02:37.4]} 8... Bb4 {[%clk 0:02:58.8]} 9. O-O-O {[%clk 0:02:37.7]} 9...
d4 {[%clk 0:02:59]} 10. a3 {[%clk 0:02:16.1]} 10... dxc3 {[%clk 0:02:59]} 11.
bxc3 {[%clk 0:02:17.9]} 11... Bxa3+ {[%clk 0:03:00]} 12. Kb1 {[%clk 0:02:19.8]}
12... Qb6+ {[%clk 0:03:00.5]} 0-1

[Event "*** MasterClass Titled Tuesday Blitz"]
[Site "Chess.com"]
[Date "2017.12.05"]
[Round "3"]
[White "Sola00"]
[Black "ChessMavenYeti"]
[Result "0-1"]
[WhiteElo "1524"]
[BlackElo "2050"]
[TimeControl "180+2"]
[EndTime "14:44:33 PST"]
[Termination "ChessMavenYeti won by checkmate"]

1. Nf3 {[%clk 0:03:01.9]} 1... d5 {[%clk 0:02:51]} 2. g3 {[%clk 0:02:57.4]} 2...
Nf6 {[%clk 0:02:49.9]} 3. Bg2 {[%clk 0:02:57.9]} 3... e6 {[%clk 0:02:41.5]} 4.
d4 {[%clk 0:02:40]} 4... Be7 {[%clk 0:02:35.6]} 5. Rg1 {[%clk 0:02:38.4]} 5...
O-O {[%clk 0:02:34.4]} 6. c4 {[%clk 0:02:37]} 6... dxc4 {[%clk 0:02:34]} 7. Qc2
{[%clk 0:02:34.8]} 7... a6 {[%clk 0:02:29.7]} 8. Qxc4 {[%clk 0:02:34.7]} 8... b5
{[%clk 0:02:30.5]} 9. Qc2 {[%clk 0:02:36.3]} 9... Bb7 {[%clk 0:02:31.9]} 10. Nc3
{[%clk 0:02:36.8]} 10... Nbd7 {[%clk 0:02:27.5]} 11. Bf4 {[%clk 0:02:37.6]}
11... Nb6 {[%clk 0:02:27.6]} 12. e3 {[%clk 0:02:36.9]} 12... c5 {[%clk
0:02:26.8]} 13. O-O-O {[%clk 0:02:32.4]} 13... c4 {[%clk 0:02:22.3]} 14. Ne5
{[%clk 0:02:30.9]} 14... Bxg2 {[%clk 0:02:21.6]} 15. Rxg2 {[%clk 0:02:32.8]}
15... Rc8 {[%clk 0:02:20.8]} 16. Ne4 {[%clk 0:02:30.2]} 16... Nxe4 {[%clk
0:02:17.7]} 17. Qxe4 {[%clk 0:02:32.1]} 17... c3 {[%clk 0:02:18.2]} 18. b3
{[%clk 0:02:28.8]} 18... c2 {[%clk 0:02:15.3]} 19. Rd2 {[%clk 0:02:28]} 19...
Ba3# {[%clk 0:02:16.3]} 0-1

[Event "*** MasterClass Titled Tuesday Blitz"]
[Site "Chess.com"]
[Date "2017.12.05"]
[Round "3"]
[White "HarutyunianTigranK"]
[Black "Jadeit90"]
[Result "1-0"]
[WhiteElo "2538"]
[BlackElo "2327"]
[TimeControl "180+2"]
[EndTime "14:44:42 PST"]
[Termination "HarutyunianTigranK won by resignation"]

1. c4 {[%clk 0:03:00.6]} 1... Nf6 {[%clk 0:03:00.8]} 2. Nc3 {[%clk 0:03:01.7]}
2... e6 {[%clk 0:03:02.7]} 3. e4 {[%clk 0:03:02.5]} 3... d5 {[%clk 0:03:04.6]}
4. e5 {[%clk 0:03:03.5]} 4... Nfd7 {[%clk 0:03:05.6]} 5. cxd5 {[%clk 0:03:00.9]}
5... Nxe5 {[%clk 0:03:06.7]} 6. d4 {[%clk 0:03:00.2]} 6... Ng6 {[%clk
0:03:06.4]} 7. Bb5+ {[%clk 0:02:57.1]} 7... c6 {[%clk 0:03:06.5]} 8. dxc6 {[%clk
0:02:58]} 8... bxc6 {[%clk 0:03:07.8]} 9. Bc4 {[%clk 0:02:56]} 9... c5 {[%clk
0:03:04.9]} 10. Nf3 {[%clk 0:02:54.4]} 10... Nc6 {[%clk 0:03:01.9]} 11. d5
{[%clk 0:02:47.3]} 11... exd5 {[%clk 0:03:02.5]} 12. Qxd5 {[%clk 0:02:34.5]}
12... Qxd5 {[%clk 0:02:51.5]} 13. Nxd5 {[%clk 0:02:33]} 13... Bd6 {[%clk
0:02:50.8]} 14. Bb5 {[%clk 0:02:27.4]} 14... Bd7 {[%clk 0:02:49.1]} 15. O-O
{[%clk 0:02:27.6]} 15... O-O {[%clk 0:02:50.2]} 16. Rd1 {[%clk 0:02:27.8]} 16...
Rab8 {[%clk 0:02:48]} 17. Nc3 {[%clk 0:02:26.5]} 17... Nce5 {[%clk 0:02:07.8]}
18. Bxd7 {[%clk 0:02:24.5]} 1-0

[Event "*** MasterClass Titled Tuesday Blitz"]
[Site "Chess.com"]
[Date "2017.12.05"]
[Round "3"]
[White "PivixBanni"]
[Black "TARS-JJ"]
[Result "1-0"]
[WhiteElo "1407"]
[BlackElo "1080"]
[TimeControl "180+2"]
[EndTime "14:44:45 PST"]
[Termination "PivixBanni won by resignation"]

1. d4 {[%clk 0:03:00]} 1... d5 {[%clk 0:02:59.4]} 2. c4 {[%clk 0:03:00]} 2...
dxc4 {[%clk 0:02:58.7]} 3. Nc3 {[%clk 0:03:01.9]} 3... e6 {[%clk 0:02:57.9]} 4.
e4 {[%clk 0:02:56.2]} 4... c6 {[%clk 0:02:54.4]} 5. Bxc4 {[%clk 0:02:56.2]} 5...
b5 {[%clk 0:02:47.5]} 6. Bd3 {[%clk 0:02:55.8]} 6... a6 {[%clk 0:02:46.8]} 7.
Nf3 {[%clk 0:02:55.5]} 7... Nf6 {[%clk 0:02:46.8]} 8. Bg5 {[%clk 0:02:53.2]}
8... Be7 {[%clk 0:02:45.5]} 9. O-O {[%clk 0:02:50.9]} 9... O-O {[%clk
0:02:45.6]} 10. Rc1 {[%clk 0:02:49.5]} 10... Nxe4 {[%clk 0:02:42.7]} 11. Bxe7
{[%clk 0:02:48.4]} 11... Qxe7 {[%clk 0:02:41]} 12. Bxe4 {[%clk 0:02:46.5]} 12...
Qb4 {[%clk 0:02:39.5]} 13. Qc2 {[%clk 0:02:29.1]} 13... g6 {[%clk 0:02:37.2]}
14. Ne5 {[%clk 0:02:22.2]} 14... Qxd4 {[%clk 0:02:32.7]} 15. Rfe1 {[%clk
0:02:12.9]} 15... Bb7 {[%clk 0:02:27.2]} 16. Nf3 {[%clk 0:02:10.2]} 16... Nd7
{[%clk 0:02:23.4]} 17. Nxd4 {[%clk 0:02:09.7]} 1-0

[Event "*** MasterClass Titled Tuesday Blitz"]
[Site "Chess.com"]
[Date "2017.12.05"]
[Round "3"]
[White "Msb2"]
[Black "Caisachess"]
[Result "1-0"]
[WhiteElo "2714"]
[BlackElo "2338"]
[TimeControl "180+2"]
[EndTime "14:45:14 PST"]
[Termination "Msb2 won by resignation"]

1. d4 {[%clk 0:03:01.9]} 1... Nf6 {[%clk 0:03:00.6]} 2. c4 {[%clk 0:03:03.2]}
2... e6 {[%clk 0:03:02]} 3. g3 {[%clk 0:03:04.1]} 3... Be7 {[%clk 0:03:02.6]} 4.
Bg2 {[%clk 0:03:05.1]} 4... O-O {[%clk 0:03:04.2]} 5. Nf3 {[%clk 0:03:06.1]}
5... d5 {[%clk 0:03:05.8]} 6. O-O {[%clk 0:03:07.3]} 6... dxc4 {[%clk
0:03:07.4]} 7. Qc2 {[%clk 0:03:08.8]} 7... a6 {[%clk 0:03:08.9]} 8. Qxc4 {[%clk
0:03:10.1]} 8... b5 {[%clk 0:03:09.5]} 9. Qc2 {[%clk 0:03:10.9]} 9... Bb7 {[%clk
0:03:10.9]} 10. Bf4 {[%clk 0:03:09.2]} 10... Nc6 {[%clk 0:03:11.7]} 11. Rd1
{[%clk 0:03:05.4]} 11... Rc8 {[%clk 0:03:10.3]} 12. a3 {[%clk 0:03:01.8]} 12...
Bd6 {[%clk 0:03:08.8]} 13. Bg5 {[%clk 0:03:01.6]} 13... h6 {[%clk 0:03:05.5]}
14. Bxf6 {[%clk 0:03:02.4]} 14... Qxf6 {[%clk 0:03:06.6]} 15. Nc3 {[%clk
0:02:51.8]} 15... Ne7 {[%clk 0:02:36.2]} 16. Ng5 {[%clk 0:02:48.3]} 16... Qxg5
{[%clk 0:02:33.4]} 17. Bxb7 {[%clk 0:02:49]} 17... Rcd8 {[%clk 0:02:33.5]} 18.
Bxa6 {[%clk 0:02:43.8]} 18... b4 {[%clk 0:02:26.2]} 19. axb4 {[%clk 0:02:43.6]}
19... Bxb4 {[%clk 0:02:27.4]} 20. e3 {[%clk 0:02:40.9]} 20... c5 {[%clk
0:02:23.5]} 21. Ne4 {[%clk 0:02:32.1]} 21... Qf5 {[%clk 0:02:21.2]} 22. dxc5
{[%clk 0:02:33]} 22... Bxc5 {[%clk 0:02:16.9]} 23. Qxc5 {[%clk 0:02:33.5]} 23...
Qxe4 {[%clk 0:02:17.4]} 24. Qxe7 {[%clk 0:02:22.8]} 24... Rxd1+ {[%clk
0:02:13.4]} 25. Rxd1 {[%clk 0:02:24.7]} 25... Qa4 {[%clk 0:02:14.7]} 26. Rd8
{[%clk 0:02:25.6]} 1-0

[Event "*** MasterClass Titled Tuesday Blitz"]
[Site "Chess.com"]
[Date "2017.12.05"]
[Round "3"]
[White "sting_vs"]
[Black "TheMagician"]
[Result "0-1"]
[WhiteElo "1437"]
[BlackElo "2177"]
[TimeControl "180+2"]
[EndTime "14:45:33 PST"]
[Termination "TheMagician won by resignation"]

1. e4 {[%clk 0:02:22.9]} 1... Nf6 {[%clk 0:03:01.9]} 2. Nc3 {[%clk 0:02:21.8]}
2... e5 {[%clk 0:03:01.9]} 3. Bc4 {[%clk 0:02:21.3]} 3... Nc6 {[%clk 0:03:00.1]}
4. Nf3 {[%clk 0:02:20.9]} 4... Bc5 {[%clk 0:02:59.9]} 5. h3 {[%clk 0:02:20.1]}
5... d6 {[%clk 0:02:51.9]} 6. d3 {[%clk 0:02:19.6]} 6... h6 {[%clk 0:02:48.3]}
7. O-O {[%clk 0:02:19.8]} 7... g5 {[%clk 0:02:45.9]} 8. Be3 {[%clk 0:02:19.3]}
8... g4 {[%clk 0:02:44.3]} 9. hxg4 {[%clk 0:02:10.2]} 9... Bxg4 {[%clk
0:02:42.8]} 10. Nd5 {[%clk 0:02:03.6]} 10... Nd4 {[%clk 0:02:35.3]} 11. Bxd4
{[%clk 0:02:01.2]} 11... Bxd4 {[%clk 0:02:34.5]} 12. c3 {[%clk 0:02:02]} 12...
Bb6 {[%clk 0:02:22.3]} 13. Nxf6+ {[%clk 0:01:49.5]} 13... Qxf6 {[%clk
0:02:22.9]} 14. Qe2 {[%clk 0:01:34.9]} 14... Rg8 {[%clk 0:02:21]} 15. Rfc1
{[%clk 0:01:28.6]} 15... Bxf3 {[%clk 0:02:19.7]} 0-1

[Event "*** MasterClass Titled Tuesday Blitz"]
[Site "Chess.com"]
[Date "2017.12.05"]
[Round "3"]
[White "oogee"]
[Black "roncataroja"]
[Result "1-0"]
[WhiteElo "2167"]
[BlackElo "1412"]
[TimeControl "180+2"]
[EndTime "14:46:03 PST"]
[Termination "oogee won by resignation"]

1. d4 {[%clk 0:02:37.8]} 1... d6 {[%clk 0:02:58.8]} 2. c4 {[%clk 0:02:38.2]}
2... g6 {[%clk 0:02:38.1]} 3. Nf3 {[%clk 0:02:38.2]} 3... Bg7 {[%clk 0:02:27]}
4. Nc3 {[%clk 0:02:37.5]} 4... Nd7 {[%clk 0:02:19.4]} 5. e3 {[%clk 0:02:35.6]}
5... Ngf6 {[%clk 0:02:18.4]} 6. Be2 {[%clk 0:02:35.3]} 6... O-O {[%clk
0:02:19.1]} 7. O-O {[%clk 0:02:34.2]} 7... c6 {[%clk 0:02:20.2]} 8. b4 {[%clk
0:02:34.3]} 8... d5 {[%clk 0:02:20.8]} 9. b5 {[%clk 0:02:31.6]} 9... Qc7 {[%clk
0:02:21.6]} 10. Qb3 {[%clk 0:02:22.2]} 10... dxc4 {[%clk 0:02:21.3]} 11. Bxc4
{[%clk 0:02:21.5]} 11... Nb6 {[%clk 0:02:13.5]} 12. Bxf7+ {[%clk 0:02:10.3]}
12... Rxf7 {[%clk 0:02:13.1]} 13. Ng5 {[%clk 0:02:11.1]} 13... Nbd5 {[%clk
0:02:11.2]} 14. Nxf7 {[%clk 0:02:11.7]} 14... Kxf7 {[%clk 0:02:11.3]} 15. e4
{[%clk 0:02:12]} 15... Nxe4 {[%clk 0:02:04.3]} 16. Nxd5 {[%clk 0:02:11.3]} 16...
cxd5 {[%clk 0:02:03.9]} 17. Qxd5+ {[%clk 0:02:12.1]} 17... Be6 {[%clk
0:01:56.5]} 18. Qxe4 {[%clk 0:02:12.6]} 18... Rd8 {[%clk 0:01:56.3]} 19. Be3
{[%clk 0:02:10.3]} 19... Qb6 {[%clk 0:01:50.8]} 20. d5 {[%clk 0:02:04.1]} 20...
Bxd5 {[%clk 0:01:49.5]} 21. Bxb6 {[%clk 0:02:04.6]} 21... Bxe4 {[%clk
0:01:43.7]} 22. Bxd8 {[%clk 0:02:02.4]} 22... b6 {[%clk 0:01:44.2]} 23. Rae1
{[%clk 0:02:01.9]} 1-0

[Event "*** MasterClass Titled Tuesday Blitz"]
[Site "Chess.com"]
[Date "2017.12.05"]
[Round "3"]
[White "larso"]
[Black "jcgs1030"]
[Result "1-0"]
[WhiteElo "2386"]
[BlackElo "2318"]
[TimeControl "180+2"]
[EndTime "14:46:22 PST"]
[Termination "larso won by resignation"]

1. d4 {[%clk 0:02:58.9]} 1... Nf6 {[%clk 0:02:44.2]} 2. Nf3 {[%clk 0:02:57.1]}
2... g6 {[%clk 0:02:34.6]} 3. Nc3 {[%clk 0:02:51]} 3... d5 {[%clk 0:02:33.9]} 4.
Bf4 {[%clk 0:02:50.1]} 4... Bg7 {[%clk 0:02:28.2]} 5. e3 {[%clk 0:02:42.8]} 5...
O-O {[%clk 0:02:24.7]} 6. Be2 {[%clk 0:02:40.2]} 6... c5 {[%clk 0:02:16.6]} 7.
Ne5 {[%clk 0:02:39.5]} 7... cxd4 {[%clk 0:02:17]} 8. exd4 {[%clk 0:02:41.4]}
8... Ne4 {[%clk 0:02:16.4]} 9. Nxe4 {[%clk 0:02:40.7]} 9... dxe4 {[%clk
0:02:18.2]} 10. h4 {[%clk 0:02:42.4]} 10... Nc6 {[%clk 0:02:18.9]} 11. h5 {[%clk
0:02:41.2]} 11... Nxd4 {[%clk 0:02:17.1]} 12. hxg6 {[%clk 0:02:38.6]} 12... hxg6
{[%clk 0:02:18.9]} 13. Qd2 {[%clk 0:02:37.4]} 13... Nc6 {[%clk 0:02:13.5]} 14.
Nxc6 {[%clk 0:02:31.5]} 14... Qxd2+ {[%clk 0:02:12.7]} 15. Kxd2 {[%clk
0:02:32.5]} 15... bxc6 {[%clk 0:02:14.6]} 16. c3 {[%clk 0:02:34]} 16... Be6
{[%clk 0:02:08.5]} 17. Kc2 {[%clk 0:02:34.5]} 17... Rfd8 {[%clk 0:02:07.8]} 18.
Be3 {[%clk 0:02:32]} 18... a5 {[%clk 0:02:05.1]} 19. Bc5 {[%clk 0:02:31.9]}
19... Bf6 {[%clk 0:02:04.2]} 20. a4 {[%clk 0:02:29.5]} 20... Rab8 {[%clk
0:02:04.3]} 21. b4 {[%clk 0:02:25.4]} 21... axb4 {[%clk 0:02:01.6]} 22. Bxb4
{[%clk 0:02:27.3]} 22... Rxb4 {[%clk 0:02:00.7]} 23. cxb4 {[%clk 0:02:27.9]}
23... Bxa1 {[%clk 0:02:02.5]} 24. Rxa1 {[%clk 0:02:29.2]} 24... Ra8 {[%clk
0:02:03]} 25. a5 {[%clk 0:02:28.9]} 25... Kg7 {[%clk 0:02:00.3]} 26. Kc3 {[%clk
0:02:27.9]} 26... Bd5 {[%clk 0:01:56.6]} 27. Kd4 {[%clk 0:02:29]} 27... Kf6
{[%clk 0:01:55.3]} 28. Kc5 {[%clk 0:02:27]} 28... Ke6 {[%clk 0:01:56.4]} 29. Rd1
{[%clk 0:02:28.1]} 29... Kd7 {[%clk 0:01:54.9]} 30. b5 {[%clk 0:02:19.1]} 30...
Rxa5 {[%clk 0:01:51.1]} 31. Kb6 {[%clk 0:02:20.2]} 31... Ra2 {[%clk 0:01:47.3]}
32. bxc6+ {[%clk 0:02:20.8]} 32... Kd6 {[%clk 0:01:46.3]} 33. c7 {[%clk
0:02:21.3]} 33... Rb2+ {[%clk 0:01:44.9]} 34. Bb5 {[%clk 0:02:21.6]} 34... e6
{[%clk 0:01:42.6]} 35. c8=Q {[%clk 0:02:20.7]} 1-0

[Event "*** MasterClass Titled Tuesday Blitz"]
[Site "Chess.com"]
[Date "2017.12.05"]
[Round "3"]
[White "jcibarra"]
[Black "JaimeSantosLatasa"]
[Result "1-0"]
[WhiteElo "2681"]
[BlackElo "2547"]
[TimeControl "180+2"]
[EndTime "14:46:23 PST"]
[Termination "jcibarra won by resignation"]

1. e4 {[%clk 0:03:01.9]} 1... e5 {[%clk 0:02:58.5]} 2. Nf3 {[%clk 0:03:01.4]}
2... Nc6 {[%clk 0:02:59.5]} 3. d4 {[%clk 0:03:02.5]} 3... exd4 {[%clk
0:03:01.4]} 4. Nxd4 {[%clk 0:03:04.2]} 4... Bc5 {[%clk 0:03:01.2]} 5. Nb3 {[%clk
0:03:04.4]} 5... Bb6 {[%clk 0:03:02]} 6. Nc3 {[%clk 0:03:05.9]} 6... Nf6 {[%clk
0:03:02.6]} 7. Qe2 {[%clk 0:03:06]} 7... O-O {[%clk 0:02:57.9]} 8. Bg5 {[%clk
0:03:05.6]} 8... h6 {[%clk 0:02:58.4]} 9. Bh4 {[%clk 0:03:06.5]} 9... a5 {[%clk
0:02:48.6]} 10. O-O-O {[%clk 0:03:01.3]} 10... a4 {[%clk 0:02:49.1]} 11. Nd2
{[%clk 0:02:53.3]} 11... a3 {[%clk 0:02:48.8]} 12. e5 {[%clk 0:02:27.9]} 12...
Re8 {[%clk 0:02:27.2]} 13. Bxf6 {[%clk 0:02:16.9]} 13... gxf6 {[%clk 0:02:25.5]}
14. Qg4+ {[%clk 0:02:17.7]} 14... Kh8 {[%clk 0:02:25.3]} 15. Qf4 {[%clk
0:02:15.6]} 15... axb2+ {[%clk 0:02:16.7]} 16. Kb1 {[%clk 0:02:16]} 16... Kg7
{[%clk 0:02:08]} 17. Qg3+ {[%clk 0:02:11.8]} 17... Kh8 {[%clk 0:02:07.3]} 18.
Qh4 {[%clk 0:02:07.5]} 18... fxe5 {[%clk 0:02:03.8]} 19. Qxh6+ {[%clk
0:02:06.4]} 19... Kg8 {[%clk 0:02:04.9]} 20. Bd3 {[%clk 0:01:58.7]} 20... e4
{[%clk 0:01:46.4]} 21. Bxe4 {[%clk 0:01:50.8]} 21... Ne5 {[%clk 0:01:44.9]} 22.
Bh7+ {[%clk 0:01:44.2]} 22... Kh8 {[%clk 0:01:44.4]} 23. Bg6+ {[%clk 0:01:38.9]}
23... Kg8 {[%clk 0:01:45.1]} 24. Bh7+ {[%clk 0:01:35.5]} 24... Kh8 {[%clk
0:01:45.7]} 25. Bf5+ {[%clk 0:01:36.8]} 25... Kg8 {[%clk 0:01:46.2]} 26. Qh7+
{[%clk 0:01:38.2]} 1-0